[Event "Early-Titled-Tuesday-Blitz-July-09-2024"]
[Site "Chess.com"]
[Date "2024.07.09"]
[Round "6"]
[White "Mattheii"]
[Black "Witik"]
[Result "1/2-1/2"]
[WhiteElo "2479"]
[BlackElo "2675"]
[TimeControl "180+1"]
[EndTime "9:09:21 PDT"]
[Termination "Game drawn by agreement"]

1. c4 {[%clk 0:03:00.7]} 1... c6 {[%clk 0:02:54.8]} 2. d4 {[%clk 0:03:00.7]}
2... d5 {[%clk 0:02:53.4]} 3. Nf3 {[%clk 0:03:01]} 3... Nf6 {[%clk 0:02:53.5]}
4. Nc3 {[%clk 0:03:01.1]} 4... e6 {[%clk 0:02:52.9]} 5. Bg5 {[%clk 0:03:00.4]}
5... h6 {[%clk 0:02:53]} 6. Bxf6 {[%clk 0:02:58.9]} 6... Qxf6 {[%clk 0:02:52]}
7. e3 {[%clk 0:02:59.8]} 7... Nd7 {[%clk 0:02:52.1]} 8. cxd5 {[%clk 0:02:58.2]}
8... exd5 {[%clk 0:02:51.1]} 9. Bd3 {[%clk 0:02:56.4]} 9... Bb4 {[%clk 0:02:43]}
10. O-O {[%clk 0:02:55.6]} 10... O-O {[%clk 0:02:42.7]} 11. Qc2 {[%clk
0:02:52.1]} 11... Re8 {[%clk 0:02:40]} 12. a3 {[%clk 0:02:52.2]} 12... Bf8
{[%clk 0:02:22.9]} 13. b4 {[%clk 0:02:50.5]} 13... g6 {[%clk 0:02:13.1]} 14. b5
{[%clk 0:02:49]} 14... Bd6 {[%clk 0:01:37]} 15. bxc6 {[%clk 0:02:34.3]} 15...
bxc6 {[%clk 0:01:36.9]} 16. e4 {[%clk 0:02:30.8]} 16... Qg7 {[%clk 0:01:31.6]}
17. exd5 {[%clk 0:01:55.1]} 17... cxd5 {[%clk 0:01:31.6]} 18. Nb5 {[%clk
0:01:47.9]} 18... Bf4 {[%clk 0:01:15.8]} 19. Nc7 {[%clk 0:01:12.6]} 19... Bxc7
{[%clk 0:01:15.2]} 20. Qxc7 {[%clk 0:01:13.5]} 20... Nb6 {[%clk 0:01:11.7]} 21.
Rfe1 {[%clk 0:01:09.3]} 21... Be6 {[%clk 0:01:07.8]} 22. Ne5 {[%clk 0:01:01.3]}
22... Nc4 {[%clk 0:00:59.1]} 23. a4 {[%clk 0:00:30.9]} 23... a5 {[%clk
0:00:51.1]} 24. Rac1 {[%clk 0:00:19.6]} 24... Rec8 {[%clk 0:00:48.1]} 25. Qe7
{[%clk 0:00:17]} 25... Re8 {[%clk 0:00:38.3]} 26. Qc5 {[%clk 0:00:14.9]} 26...
Rac8 {[%clk 0:00:38.4]} 27. Qa7 {[%clk 0:00:14.1]} 27... Qf6 {[%clk 0:00:36.1]}
28. Bxc4 {[%clk 0:00:12.9]} 28... dxc4 {[%clk 0:00:36.5]} 29. Qxa5 {[%clk
0:00:13.3]} 29... Ra8 {[%clk 0:00:31.7]} 30. Qb5 {[%clk 0:00:09.6]} 30... Reb8
{[%clk 0:00:30.9]} 31. Qc6 {[%clk 0:00:09.9]} 31... Rc8 {[%clk 0:00:28.5]} 32.
Qb6 {[%clk 0:00:09.7]} 32... Qg5 {[%clk 0:00:20.6]} 33. Nf3 {[%clk 0:00:08.8]}
33... Qa5 {[%clk 0:00:18.3]} 34. Qxa5 {[%clk 0:00:07.1]} 34... Rxa5 {[%clk
0:00:19.2]} 35. Ra1 {[%clk 0:00:07.8]} 35... Bd5 {[%clk 0:00:17.9]} 36. Ne5
{[%clk 0:00:07]} 36... Rca8 {[%clk 0:00:15.1]} 37. Nd7 {[%clk 0:00:07.4]} 37...
Kg7 {[%clk 0:00:12.8]} 38. Nb6 {[%clk 0:00:07.2]} 38... R8a6 {[%clk 0:00:13.5]}
39. Nxd5 {[%clk 0:00:06.6]} 39... Rxd5 {[%clk 0:00:14.4]} 40. Rec1 {[%clk
0:00:05]} 40... Rxd4 {[%clk 0:00:14.4]} 41. g3 {[%clk 0:00:05.7]} 41... h5
{[%clk 0:00:13]} 42. Rc3 {[%clk 0:00:05.9]} 42... g5 {[%clk 0:00:13.2]} 43. a5
{[%clk 0:00:06.2]} 43... g4 {[%clk 0:00:13.2]} 44. Ra4 {[%clk 0:00:06.6]} 44...
Kg6 {[%clk 0:00:11.2]} 45. Raxc4 {[%clk 0:00:06.3]} 45... Rxc4 {[%clk
0:00:11.7]} 46. Rxc4 {[%clk 0:00:07.2]} 46... Rxa5 {[%clk 0:00:12.3]} 47. Rc6+
{[%clk 0:00:07.9]} 47... f6 {[%clk 0:00:12.7]} 48. Kg2 {[%clk 0:00:08.8]} 48...
Ra2 {[%clk 0:00:12.5]} 49. Rc3 {[%clk 0:00:09]} 49... Rb2 {[%clk 0:00:12.8]} 50.
Rc4 {[%clk 0:00:09.5]} 50... Ra2 {[%clk 0:00:13]} 51. Rf4 {[%clk 0:00:08.8]}
1/2-1/2

[Event "Early-Titled-Tuesday-Blitz-July-09-2024"]
[Site "Chess.com"]
[Date "2024.07.09"]
[Round "6"]
[White "Crazy_girl99"]
[Black "TioCridineno"]
[Result "1-0"]
[WhiteElo "2634"]
[BlackElo "2425"]
[TimeControl "180+1"]
[EndTime "9:09:21 PDT"]
[Termination "Crazy_girl99 won by resignation"]

1. e4 {[%clk 0:02:59.1]} 1... c5 {[%clk 0:02:57.3]} 2. Nf3 {[%clk 0:02:59]} 2...
Nc6 {[%clk 0:02:57.2]} 3. Bb5 {[%clk 0:02:58.8]} 3... Nf6 {[%clk 0:02:55.7]} 4.
Nc3 {[%clk 0:02:58.2]} 4... g6 {[%clk 0:02:55.6]} 5. O-O {[%clk 0:02:58]} 5...
Bg7 {[%clk 0:02:55.8]} 6. Re1 {[%clk 0:02:57.8]} 6... Nd4 {[%clk 0:02:54.6]} 7.
Nxd4 {[%clk 0:02:54.6]} 7... cxd4 {[%clk 0:02:54.7]} 8. Nd5 {[%clk 0:02:54.6]}
8... Nxd5 {[%clk 0:02:51.2]} 9. exd5 {[%clk 0:02:54.5]} 9... O-O {[%clk
0:02:51.7]} 10. Qf3 {[%clk 0:02:51.1]} 10... Qb6 {[%clk 0:02:49.6]} 11. Bf1
{[%clk 0:02:47.9]} 11... e6 {[%clk 0:02:47.3]} 12. d3 {[%clk 0:02:46]} 12... Qc5
{[%clk 0:02:45.3]} 13. Bf4 {[%clk 0:02:38.4]} 13... a5 {[%clk 0:02:18.3]} 14.
Qg3 {[%clk 0:02:36.1]} 14... Qxd5 {[%clk 0:02:13.7]} 15. Be2 {[%clk 0:02:35.6]}
15... e5 {[%clk 0:02:09.1]} 16. Bd2 {[%clk 0:02:33.6]} 16... d6 {[%clk
0:02:05.1]} 17. c4 {[%clk 0:02:30.5]} 17... dxc3 {[%clk 0:02:03.7]} 18. Bxc3
{[%clk 0:02:30.6]} 18... Bf5 {[%clk 0:01:57.6]} 19. Bf3 {[%clk 0:02:28.1]} 19...
Qxd3 {[%clk 0:01:55.8]} 20. Rad1 {[%clk 0:02:26.8]} 20... Qb5 {[%clk 0:01:55]}
21. Rxd6 {[%clk 0:02:23.8]} 21... Rfd8 {[%clk 0:01:51.5]} 22. Rxd8+ {[%clk
0:02:20.2]} 22... Rxd8 {[%clk 0:01:50.2]} 23. h4 {[%clk 0:02:19.4]} 23... Rd3
{[%clk 0:01:28.4]} 24. h5 {[%clk 0:02:16.6]} 24... Bf6 {[%clk 0:01:09.4]} 25. h6
{[%clk 0:02:02.9]} 25... Kf8 {[%clk 0:00:56]} 26. a4 {[%clk 0:01:50.7]} 26...
Qc5 {[%clk 0:00:43.2]} 27. Qh2 {[%clk 0:01:28.9]} 27... b5 {[%clk 0:00:18.7]}
28. axb5 {[%clk 0:01:26]} 28... a4 {[%clk 0:00:19.2]} 29. b6 {[%clk 0:01:05.8]}
29... Qxb6 {[%clk 0:00:18.1]} 30. Bxe5 {[%clk 0:01:06.4]} 30... Rd8 {[%clk
0:00:12]} 31. Bc7 {[%clk 0:00:53.3]} 31... Qb4 {[%clk 0:00:10.8]} 32. Rf1 {[%clk
0:00:53.6]} 32... Rd3 {[%clk 0:00:07.5]} 33. Be5 {[%clk 0:00:49.5]} 33... Qb6
{[%clk 0:00:04.8]} 34. Qf4 {[%clk 0:00:45.2]} 34... Bxe5 {[%clk 0:00:02.1]} 35.
Qxe5 {[%clk 0:00:46.1]} 35... Qd6 {[%clk 0:00:02.5]} 36. Qg7+ {[%clk 0:00:44.4]}
36... Ke7 {[%clk 0:00:03.1]} 37. Re1+ {[%clk 0:00:43.1]} 37... Be6 {[%clk
0:00:02.6]} 38. Qxh7 {[%clk 0:00:43.4]} 38... Qf4 {[%clk 0:00:02.5]} 39. Qg7
{[%clk 0:00:26.4]} 39... Qd4 {[%clk 0:00:02.6]} 40. Qxd4 {[%clk 0:00:14.7]}
40... Rxd4 {[%clk 0:00:02.9]} 41. g3 {[%clk 0:00:15.6]} 41... Rd8 {[%clk
0:00:02.7]} 42. Re4 {[%clk 0:00:15.5]} 42... Rh8 {[%clk 0:00:03.2]} 43. Rh4
{[%clk 0:00:16]} 43... f6 {[%clk 0:00:03.1]} 44. h7 {[%clk 0:00:15.8]} 44... Kf7
{[%clk 0:00:03.2]} 45. Rxa4 {[%clk 0:00:16.2]} 45... Rxh7 {[%clk 0:00:02.8]} 46.
Ra7+ {[%clk 0:00:16.8]} 46... Kg8 {[%clk 0:00:03.4]} 47. Rxh7 {[%clk 0:00:17.5]}
47... Kxh7 {[%clk 0:00:04.3]} 48. b4 {[%clk 0:00:18.2]} 48... Kg7 {[%clk
0:00:04.5]} 49. b5 {[%clk 0:00:18.8]} 49... Bc8 {[%clk 0:00:05]} 50. b6 {[%clk
0:00:19.3]} 50... f5 {[%clk 0:00:05.3]} 51. b7 {[%clk 0:00:19.8]} 51... Bxb7
{[%clk 0:00:06.2]} 52. Bxb7 {[%clk 0:00:20]} 52... Kf6 {[%clk 0:00:07.1]} 53. f4
{[%clk 0:00:20.5]} 53... g5 {[%clk 0:00:08]} 54. Kf2 {[%clk 0:00:21]} 54... Ke6
{[%clk 0:00:08.4]} 55. Ke3 {[%clk 0:00:21.4]} 55... gxf4+ {[%clk 0:00:08.9]} 56.
Kxf4 {[%clk 0:00:21.9]} 56... Kf6 {[%clk 0:00:09.8]} 57. Bc8 {[%clk 0:00:22.3]}
57... Ke7 {[%clk 0:00:10]} 58. Bxf5 {[%clk 0:00:23.2]} 1-0

[Event "Early-Titled-Tuesday-Blitz-July-09-2024"]
[Site "Chess.com"]
[Date "2024.07.09"]
[Round "6"]
[White "Aragon"]
[Black "Massakru"]
[Result "0-1"]
[WhiteElo "2166"]
[BlackElo "2380"]
[TimeControl "180+1"]
[EndTime "9:09:21 PDT"]
[Termination "Massakru won on time"]

1. e4 {[%clk 0:02:55.4]} 1... g6 {[%clk 0:02:58.1]} 2. d4 {[%clk 0:02:53.8]}
2... Bg7 {[%clk 0:02:58.7]} 3. Nc3 {[%clk 0:02:53.2]} 3... d5 {[%clk 0:02:59.2]}
4. exd5 {[%clk 0:02:47.6]} 4... Nf6 {[%clk 0:02:59.2]} 5. Bb5+ {[%clk
0:02:45.9]} 5... Nbd7 {[%clk 0:02:55.7]} 6. Nge2 {[%clk 0:02:40.4]} 6... a6
{[%clk 0:02:55.8]} 7. Ba4 {[%clk 0:02:40.7]} 7... b5 {[%clk 0:02:56.1]} 8. Bb3
{[%clk 0:02:41.1]} 8... Nb6 {[%clk 0:02:56.8]} 9. Bg5 {[%clk 0:02:29.3]} 9...
Nfxd5 {[%clk 0:02:55.1]} 10. Nxd5 {[%clk 0:02:28.1]} 10... Nxd5 {[%clk
0:02:55.1]} 11. O-O {[%clk 0:02:25.2]} 11... Bb7 {[%clk 0:02:52.5]} 12. Re1
{[%clk 0:02:23.2]} 12... O-O {[%clk 0:02:51.9]} 13. c3 {[%clk 0:02:19.3]} 13...
Qd6 {[%clk 0:02:49.2]} 14. Bh4 {[%clk 0:02:16]} 14... Rae8 {[%clk 0:02:40.3]}
15. Bg3 {[%clk 0:02:15.8]} 15... Qc6 {[%clk 0:02:40]} 16. Bxd5 {[%clk
0:02:01.4]} 16... Qxd5 {[%clk 0:02:39.8]} 17. Nf4 {[%clk 0:02:01.5]} 17... Qc6
{[%clk 0:02:35.7]} 18. f3 {[%clk 0:02:00.7]} 18... e5 {[%clk 0:02:33.1]} 19.
dxe5 {[%clk 0:02:00.4]} 19... Bxe5 {[%clk 0:02:33.1]} 20. Nd3 {[%clk 0:01:28.5]}
20... Bg7 {[%clk 0:02:21.1]} 21. Qc2 {[%clk 0:01:23.2]} 21... a5 {[%clk
0:02:13.1]} 22. Be5 {[%clk 0:01:18.6]} 22... Bh6 {[%clk 0:02:04.6]} 23. Qf2
{[%clk 0:01:08.8]} 23... Qd5 {[%clk 0:02:01.5]} 24. Bd4 {[%clk 0:01:04.6]} 24...
Rd8 {[%clk 0:01:38.3]} 25. a3 {[%clk 0:00:56.5]} 25... Qf5 {[%clk 0:01:30.6]}
26. Nc5 {[%clk 0:00:52.2]} 26... Bc8 {[%clk 0:01:27.9]} 27. Ne4 {[%clk
0:00:51.5]} 27... Bg7 {[%clk 0:01:25.7]} 28. Rad1 {[%clk 0:00:38.8]} 28... Be6
{[%clk 0:01:21.5]} 29. Rd2 {[%clk 0:00:33.1]} 29... Bd5 {[%clk 0:01:10.8]} 30.
Bxg7 {[%clk 0:00:30.8]} 30... Kxg7 {[%clk 0:01:11]} 31. Qd4+ {[%clk 0:00:29.9]}
31... f6 {[%clk 0:01:05.3]} 32. Ng3 {[%clk 0:00:25]} 32... Qg5 {[%clk
0:01:01.5]} 33. f4 {[%clk 0:00:20]} 33... Qh4 {[%clk 0:00:58.2]} 34. Re7+ {[%clk
0:00:19]} 34... Bf7 {[%clk 0:00:55.8]} 35. Qe3 {[%clk 0:00:17.7]} 35... Rxd2
{[%clk 0:00:55]} 36. Qxd2 {[%clk 0:00:18.6]} 36... Re8 {[%clk 0:00:47.2]} 37.
Rxe8 {[%clk 0:00:18]} 37... Bxe8 {[%clk 0:00:47.7]} 38. Qe3 {[%clk 0:00:17.7]}
38... Bf7 {[%clk 0:00:45.6]} 39. Ne4 {[%clk 0:00:17.1]} 39... Qg4 {[%clk
0:00:44.5]} 40. g3 {[%clk 0:00:15.7]} 40... Qd1+ {[%clk 0:00:44.1]} 41. Kg2
{[%clk 0:00:15.3]} 41... Bd5 {[%clk 0:00:43.7]} 42. Kf2 {[%clk 0:00:14.8]} 42...
Qh1 {[%clk 0:00:41.1]} 43. Nc5 {[%clk 0:00:12.9]} 43... Qxh2+ {[%clk 0:00:40.8]}
44. Ke1 {[%clk 0:00:12.8]} 44... Qh1+ {[%clk 0:00:37.9]} 45. Kd2 {[%clk
0:00:12.2]} 45... Qg2+ {[%clk 0:00:37.8]} 46. Ke1 {[%clk 0:00:11.8]} 46... h5
{[%clk 0:00:36.6]} 47. Qe7+ {[%clk 0:00:10.4]} 47... Kh6 {[%clk 0:00:36]} 48.
Qf8+ {[%clk 0:00:09.9]} 48... Kh7 {[%clk 0:00:36.3]} 49. Qe7+ {[%clk 0:00:09.6]}
49... Kg8 {[%clk 0:00:36.6]} 50. Qd8+ {[%clk 0:00:07.1]} 50... Kg7 {[%clk
0:00:35]} 51. Qxc7+ {[%clk 0:00:06.5]} 51... Bf7 {[%clk 0:00:35.6]} 52. Ne6+
{[%clk 0:00:06.3]} 52... Kg8 {[%clk 0:00:35.9]} 53. Qd8+ {[%clk 0:00:06.1]}
53... Kh7 {[%clk 0:00:36.1]} 54. Qe7 {[%clk 0:00:03.7]} 54... Qxg3+ {[%clk
0:00:35.2]} 55. Kf1 {[%clk 0:00:02.6]} 55... Qf3+ {[%clk 0:00:32.9]} 56. Kg1
{[%clk 0:00:01.3]} 56... Qe3+ {[%clk 0:00:33.1]} 57. Kh2 {[%clk 0:00:01.7]}
57... Qxe6 {[%clk 0:00:33.3]} 0-1

[Event "Early-Titled-Tuesday-Blitz-July-09-2024"]
[Site "Chess.com"]
[Date "2024.07.09"]
[Round "6"]
[White "bubeliang"]
[Black "2Coaches1Profile"]
[Result "1/2-1/2"]
[WhiteElo "2815"]
[BlackElo "2594"]
[TimeControl "180+1"]
[EndTime "9:09:24 PDT"]
[Termination "Game drawn by stalemate"]

1. e4 {[%clk 0:03:00.9]} 1... Nf6 {[%clk 0:02:59.6]} 2. Nc3 {[%clk 0:03:00.2]}
2... d5 {[%clk 0:02:59.6]} 3. e5 {[%clk 0:02:57]} 3... Nfd7 {[%clk 0:02:59.4]}
4. Nxd5 {[%clk 0:02:56.4]} 4... Nxe5 {[%clk 0:02:59.5]} 5. Ne3 {[%clk
0:02:56.9]} 5... c5 {[%clk 0:03:00]} 6. Nf3 {[%clk 0:02:55.2]} 6... Nbc6 {[%clk
0:02:51.4]} 7. Bb5 {[%clk 0:02:54.2]} 7... Bd7 {[%clk 0:02:44.1]} 8. Nxe5 {[%clk
0:02:48.6]} 8... Nxe5 {[%clk 0:02:45]} 9. Bxd7+ {[%clk 0:02:49.4]} 9... Nxd7
{[%clk 0:02:35.7]} 10. O-O {[%clk 0:02:48.9]} 10... e6 {[%clk 0:02:35.4]} 11.
Qf3 {[%clk 0:02:48.4]} 11... Qc7 {[%clk 0:02:33.7]} 12. d3 {[%clk 0:02:47.3]}
12... Bd6 {[%clk 0:02:30.3]} 13. g3 {[%clk 0:02:47.3]} 13... O-O {[%clk
0:02:30.4]} 14. Nc4 {[%clk 0:02:47.1]} 14... Ne5 {[%clk 0:02:22.8]} 15. Nxe5
{[%clk 0:02:43]} 15... Bxe5 {[%clk 0:02:23.7]} 16. Be3 {[%clk 0:02:41.6]} 16...
b6 {[%clk 0:02:20.1]} 17. c3 {[%clk 0:02:41]} 17... Rad8 {[%clk 0:02:19.2]} 18.
Rad1 {[%clk 0:02:40.4]} 18... Rd5 {[%clk 0:02:15.5]} 19. d4 {[%clk 0:02:25.4]}
19... cxd4 {[%clk 0:02:16.4]} 20. cxd4 {[%clk 0:02:25.8]} 20... Bf6 {[%clk
0:02:08.5]} 21. Bf4 {[%clk 0:02:22.6]} 21... Qd7 {[%clk 0:02:06.6]} 22. Be5
{[%clk 0:02:21]} 22... Bxe5 {[%clk 0:01:35.5]} 23. dxe5 {[%clk 0:02:19.9]} 23...
Rd8 {[%clk 0:01:36.4]} 24. Rxd5 {[%clk 0:02:14.8]} 24... Qxd5 {[%clk 0:01:37.3]}
25. Qxd5 {[%clk 0:02:14.6]} 25... Rxd5 {[%clk 0:01:37.5]} 26. Rc1 {[%clk
0:02:15]} 26... g5 {[%clk 0:01:33.6]} 27. Rc7 {[%clk 0:02:13.7]} 27... a5 {[%clk
0:01:18.7]} 28. Rb7 {[%clk 0:02:11.6]} 28... Rb5 {[%clk 0:01:10.9]} 29. b3
{[%clk 0:02:11.4]} 29... Kg7 {[%clk 0:00:35.8]} 30. g4 {[%clk 0:02:09.3]} 30...
Kg6 {[%clk 0:00:31.7]} 31. h3 {[%clk 0:02:07.2]} 31... Rb4 {[%clk 0:00:24]} 32.
Kg2 {[%clk 0:02:04.9]} 32... a4 {[%clk 0:00:24]} 33. bxa4 {[%clk 0:02:05]} 33...
Rxa4 {[%clk 0:00:24.9]} 34. Rxb6 {[%clk 0:02:05.4]} 34... Rxa2 {[%clk
0:00:25.6]} 35. Rb5 {[%clk 0:02:00]} 35... Ra4 {[%clk 0:00:25]} 36. Kg3 {[%clk
0:01:58.5]} 36... Rf4 {[%clk 0:00:24.9]} 37. h4 {[%clk 0:01:56.5]} 37... h5
{[%clk 0:00:24]} 38. f3 {[%clk 0:01:48.6]} 38... Rd4 {[%clk 0:00:17.1]} 39.
gxh5+ {[%clk 0:01:25.8]} 39... Kxh5 {[%clk 0:00:18]} 40. hxg5 {[%clk 0:01:26.6]}
40... Kxg5 {[%clk 0:00:18.6]} 41. Rb7 {[%clk 0:01:27.2]} 41... Kg6 {[%clk
0:00:18.3]} 42. f4 {[%clk 0:01:24.5]} 42... Rd3+ {[%clk 0:00:16.7]} 43. Kg4
{[%clk 0:01:23.7]} 43... Rd4 {[%clk 0:00:15.7]} 44. Rb8 {[%clk 0:01:23.6]} 44...
f5+ {[%clk 0:00:14.4]} 45. Kf3 {[%clk 0:01:19.3]} 45... Rd3+ {[%clk 0:00:14.1]}
46. Ke2 {[%clk 0:01:19.6]} 46... Ra3 {[%clk 0:00:13.5]} 47. Rb6 {[%clk
0:01:14.6]} 47... Kh5 {[%clk 0:00:13]} 48. Rxe6 {[%clk 0:01:12.1]} 48... Kg4
{[%clk 0:00:13.3]} 49. Re8 {[%clk 0:01:11.1]} 49... Kxf4 {[%clk 0:00:13.8]} 50.
e6 {[%clk 0:01:11.7]} 50... Ke5 {[%clk 0:00:12.8]} 51. Kf2 {[%clk 0:01:03.8]}
51... Ra7 {[%clk 0:00:08.9]} 52. Kf3 {[%clk 0:00:57.3]} 52... Kf6 {[%clk
0:00:08]} 53. Kf4 {[%clk 0:00:57.7]} 53... Re7 {[%clk 0:00:08.3]} 54. Rh8 {[%clk
0:00:46.8]} 54... Rxe6 {[%clk 0:00:07.4]} 55. Rh6+ {[%clk 0:00:46.9]} 55... Kf7
{[%clk 0:00:07.9]} 56. Rh7+ {[%clk 0:00:47.4]} 56... Kf6 {[%clk 0:00:08.2]} 57.
Rh6+ {[%clk 0:00:46]} 57... Kf7 {[%clk 0:00:08.5]} 58. Rxe6 {[%clk 0:00:46.2]}
58... Kxe6 {[%clk 0:00:09.4]} 59. Kf3 {[%clk 0:00:44.9]} 59... Ke5 {[%clk
0:00:10.3]} 60. Ke3 {[%clk 0:00:45.2]} 60... f4+ {[%clk 0:00:11.2]} 61. Kf3
{[%clk 0:00:45.5]} 61... Kf5 {[%clk 0:00:11.6]} 62. Kf2 {[%clk 0:00:46.1]} 62...
Kg4 {[%clk 0:00:12.5]} 63. Kg2 {[%clk 0:00:46.4]} 63... f3+ {[%clk 0:00:13.4]}
64. Kf2 {[%clk 0:00:46.4]} 64... Kf4 {[%clk 0:00:14.3]} 65. Kf1 {[%clk
0:00:46.7]} 65... Ke4 {[%clk 0:00:15.2]} 66. Kf2 {[%clk 0:00:46.7]} 66... Kf4
{[%clk 0:00:16.1]} 67. Kf1 {[%clk 0:00:47.2]} 67... Kg5 {[%clk 0:00:16.8]} 68.
Kf2 {[%clk 0:00:47.4]} 68... Kg4 {[%clk 0:00:17.7]} 69. Kf1 {[%clk 0:00:48.3]}
69... Kg3 {[%clk 0:00:18.5]} 70. Kg1 {[%clk 0:00:48.6]} 70... f2+ {[%clk
0:00:19.4]} 71. Kf1 {[%clk 0:00:48.9]} 71... Kf3 {[%clk 0:00:20.3]} 1/2-1/2

[Event "Early-Titled-Tuesday-Blitz-July-09-2024"]
[Site "Chess.com"]
[Date "2024.07.09"]
[Round "6"]
[White "bilosuvenosu06"]
[Black "GelmanAlexander"]
[Result "1-0"]
[WhiteElo "2564"]
[BlackElo "2718"]
[TimeControl "180+1"]
[EndTime "9:09:24 PDT"]
[Termination "bilosuvenosu06 won on time"]

1. d4 {[%clk 0:02:59.5]} 1... c5 {[%clk 0:03:00.1]} 2. d5 {[%clk 0:02:56.6]}
2... Nf6 {[%clk 0:03:00.2]} 3. c4 {[%clk 0:02:56.2]} 3... b5 {[%clk 0:03:00]} 4.
cxb5 {[%clk 0:02:55.4]} 4... a6 {[%clk 0:03:00.4]} 5. b6 {[%clk 0:02:54.3]} 5...
d6 {[%clk 0:03:00.8]} 6. Nc3 {[%clk 0:02:53.5]} 6... Nbd7 {[%clk 0:03:01.2]} 7.
Nf3 {[%clk 0:02:54]} 7... g6 {[%clk 0:03:01.6]} 8. e4 {[%clk 0:02:51.8]} 8...
Bg7 {[%clk 0:03:02]} 9. h3 {[%clk 0:02:51.5]} 9... O-O {[%clk 0:03:01.9]} 10.
Be2 {[%clk 0:02:51.4]} 10... Nxb6 {[%clk 0:02:51.8]} 11. Be3 {[%clk 0:02:50.8]}
11... Re8 {[%clk 0:02:45.3]} 12. O-O {[%clk 0:02:47.4]} 12... Bb7 {[%clk
0:02:44.1]} 13. Nd2 {[%clk 0:02:45.7]} 13... e6 {[%clk 0:02:44.2]} 14. dxe6
{[%clk 0:02:40.3]} 14... Rxe6 {[%clk 0:02:44.6]} 15. Bf3 {[%clk 0:02:38.9]}
15... Nfd7 {[%clk 0:02:39.3]} 16. Qc2 {[%clk 0:02:35.1]} 16... Qh4 {[%clk
0:02:30.3]} 17. a4 {[%clk 0:02:25.3]} 17... a5 {[%clk 0:02:27]} 18. Rfd1 {[%clk
0:02:19.1]} 18... Rae8 {[%clk 0:02:26.5]} 19. Nb5 {[%clk 0:02:01]} 19... d5
{[%clk 0:01:59.7]} 20. e5 {[%clk 0:01:49.7]} 20... Rxe5 {[%clk 0:01:27.7]} 21.
Nd6 {[%clk 0:01:44.4]} 21... Rb8 {[%clk 0:01:20.5]} 22. Bxc5 {[%clk 0:01:27.5]}
22... Bf8 {[%clk 0:00:54.7]} 23. Nxb7 {[%clk 0:01:17.3]} 23... Rxb7 {[%clk
0:00:49.8]} 24. Bxf8 {[%clk 0:01:15.7]} 24... Kxf8 {[%clk 0:00:48.5]} 25. Re1
{[%clk 0:01:08.9]} 25... Rxe1+ {[%clk 0:00:41.5]} 26. Rxe1 {[%clk 0:01:09.8]}
26... Qxa4 {[%clk 0:00:41.3]} 27. Qc3 {[%clk 0:01:01.7]} 27... d4 {[%clk
0:00:38.8]} 28. Qc1 {[%clk 0:00:21.6]} 28... Rb8 {[%clk 0:00:35.3]} 29. Qc7
{[%clk 0:00:19]} 29... Qb4 {[%clk 0:00:30.4]} 30. Rd1 {[%clk 0:00:14.8]} 30...
Rc8 {[%clk 0:00:24.9]} 31. Qf4 {[%clk 0:00:14.9]} 31... Kg7 {[%clk 0:00:22.8]}
32. Ne4 {[%clk 0:00:14.6]} 32... Qxb2 {[%clk 0:00:20.5]} 33. Nd6 {[%clk
0:00:14.6]} 33... Rf8 {[%clk 0:00:20]} 34. Rxd4 {[%clk 0:00:13.2]} 34... a4
{[%clk 0:00:14.8]} 35. Bc6 {[%clk 0:00:13.1]} 35... a3 {[%clk 0:00:13.4]} 36.
Rb4 {[%clk 0:00:10.4]} 36... Qa1+ {[%clk 0:00:09.5]} 37. Kh2 {[%clk 0:00:10.3]}
37... a2 {[%clk 0:00:08.7]} 38. Bxd7 {[%clk 0:00:05.6]} 38... Qf6 {[%clk
0:00:04.9]} 39. Qxf6+ {[%clk 0:00:01.6]} 39... Kxf6 {[%clk 0:00:05.8]} 40. Rxb6
{[%clk 0:00:01.9]} 40... a1=Q {[%clk 0:00:04.9]} 41. Ne4+ {[%clk 0:00:02]} 41...
Ke7 {[%clk 0:00:04.5]} 42. Bg4 {[%clk 0:00:01.5]} 42... Qe5+ {[%clk 0:00:03.9]}
43. Ng3 {[%clk 0:00:02.4]} 43... Rb8 {[%clk 0:00:02.2]} 44. Rb3 {[%clk
0:00:03.3]} 44... Rxb3 {[%clk 0:00:01.9]} 45. f3 {[%clk 0:00:03.9]} 45... h5
{[%clk 0:00:01.3]} 46. Bf5 {[%clk 0:00:04.5]} 46... gxf5 {[%clk 0:00:01.2]} 47.
h4 {[%clk 0:00:05.4]} 1-0

[Event "Early-Titled-Tuesday-Blitz-July-09-2024"]
[Site "Chess.com"]
[Date "2024.07.09"]
[Round "6"]
[White "PositionalPanther"]
[Black "karinachess1"]
[Result "1-0"]
[WhiteElo "2513"]
[BlackElo "2676"]
[TimeControl "180+1"]
[EndTime "9:09:24 PDT"]
[Termination "PositionalPanther won on time"]

1. e4 {[%clk 0:03:00.9]} 1... e5 {[%clk 0:03:00.2]} 2. Nf3 {[%clk 0:03:00.3]}
2... Nc6 {[%clk 0:03:00.6]} 3. Bc4 {[%clk 0:03:00.2]} 3... Nf6 {[%clk
0:03:00.5]} 4. d3 {[%clk 0:03:00.4]} 4... h6 {[%clk 0:03:00.2]} 5. c3 {[%clk
0:02:58.5]} 5... d6 {[%clk 0:03:00.7]} 6. Nbd2 {[%clk 0:02:55.2]} 6... g5 {[%clk
0:03:00.8]} 7. h4 {[%clk 0:02:47.3]} 7... g4 {[%clk 0:03:00.6]} 8. Ng1 {[%clk
0:02:43.3]} 8... Bg7 {[%clk 0:03:00]} 9. Ne2 {[%clk 0:02:37.6]} 9... d5 {[%clk
0:02:58]} 10. Bb5 {[%clk 0:02:31.8]} 10... O-O {[%clk 0:02:50.1]} 11. Ng3 {[%clk
0:02:31]} 11... a6 {[%clk 0:02:44.3]} 12. Ba4 {[%clk 0:02:28.4]} 12... Be6
{[%clk 0:02:44.6]} 13. Qe2 {[%clk 0:02:22]} 13... b5 {[%clk 0:02:43.3]} 14. Bc2
{[%clk 0:02:21.5]} 14... d4 {[%clk 0:02:42.7]} 15. a3 {[%clk 0:02:06.2]} 15...
Qd7 {[%clk 0:02:41]} 16. Bb3 {[%clk 0:02:02.8]} 16... Ne7 {[%clk 0:02:35.4]} 17.
Bxe6 {[%clk 0:02:02.2]} 17... fxe6 {[%clk 0:02:36.3]} 18. Nb3 {[%clk 0:01:41.1]}
18... Ng6 {[%clk 0:02:31.2]} 19. Nc5 {[%clk 0:01:40.4]} 19... Qd6 {[%clk
0:02:25.6]} 20. b4 {[%clk 0:01:40.5]} 20... dxc3 {[%clk 0:02:22.7]} 21. Qa2
{[%clk 0:01:30.1]} 21... Rae8 {[%clk 0:02:07.8]} 22. Nf5 {[%clk 0:01:18.7]}
22... Qc6 {[%clk 0:02:07.9]} 23. Nxg7 {[%clk 0:00:57.2]} 23... Kxg7 {[%clk
0:02:08.8]} 24. g3 {[%clk 0:00:49.1]} 24... h5 {[%clk 0:02:04.5]} 25. Be3 {[%clk
0:00:42.5]} 25... Nd7 {[%clk 0:01:56.9]} 26. Rc1 {[%clk 0:00:25]} 26... Nxc5
{[%clk 0:01:57]} 27. Bxc5 {[%clk 0:00:25.6]} 27... Rf3 {[%clk 0:01:57.4]} 28.
Rxc3 {[%clk 0:00:25.4]} 28... Qd7 {[%clk 0:01:54]} 29. Be3 {[%clk 0:00:22]}
29... c6 {[%clk 0:01:42.4]} 30. Qe2 {[%clk 0:00:22.2]} 30... Ref8 {[%clk
0:01:25.8]} 31. Kd2 {[%clk 0:00:20.5]} 31... Ne7 {[%clk 0:01:14.7]} 32. Rhc1
{[%clk 0:00:20.4]} 32... Kg6 {[%clk 0:01:01.7]} 33. Ke1 {[%clk 0:00:20.6]} 33...
Rc8 {[%clk 0:00:52.4]} 34. R1c2 {[%clk 0:00:20.9]} 34... Ng8 {[%clk 0:00:46.3]}
35. Qd1 {[%clk 0:00:21.1]} 35... Ne7 {[%clk 0:00:39.3]} 36. Qc1 {[%clk
0:00:21.4]} 36... Rcf8 {[%clk 0:00:39.3]} 37. Bc5 {[%clk 0:00:20.5]} 37... R3f6
{[%clk 0:00:14.5]} 38. Be3 {[%clk 0:00:20.1]} 38... Rc8 {[%clk 0:00:12.9]} 39.
Rc5 {[%clk 0:00:19.6]} 39... Qd6 {[%clk 0:00:12]} 40. Ke2 {[%clk 0:00:19.1]}
40... Rf3 {[%clk 0:00:12]} 41. Qb2 {[%clk 0:00:18.6]} 41... Rd8 {[%clk
0:00:11.9]} 42. Rd2 {[%clk 0:00:18]} 42... Rd7 {[%clk 0:00:11.1]} 43. Rxe5
{[%clk 0:00:16.1]} 43... Kf7 {[%clk 0:00:05.8]} 44. Rxh5 {[%clk 0:00:14.2]}
44... e5 {[%clk 0:00:03.2]} 45. Rh7+ {[%clk 0:00:12.3]} 45... Ke8 {[%clk
0:00:02.8]} 46. Rh8+ {[%clk 0:00:11.8]} 46... Kf7 {[%clk 0:00:03]} 47. Qb3+
{[%clk 0:00:11.9]} 1-0